bitfinex-derivatives/quotes_ETHF0:USTF0_20260203
["timestamp","ask_amount","ask_price","bid_price","bid_amount"]
[1770148048064,0.22833,2192.3,2190.7,2.55696494]
[1770148048461,0.22842,2192.2,2190.7,2.55696494]
[1770148048665,0.22833,2192.3,2190.7,2.55696494]
[1770148048862,0.0052655,2192.2,2190.7,2.56125762]
[1770148049369,0.2336055,2192.2,2190.7,2.56125762]
[1770148049564,0.22836,2192.0,2190.7,2.56125762]
[1770148049866,0.22842,2192.0,2190.7,2.56125762]
[1770148050065,0.4568,2191.8,2190.7,0.00429268]
[1770148050271,0.2284,2191.6,2190.7,0.00429268]
[1770148050473,4.33742,2191.5,2190.7,0.00429268]
[1770148050670,0.22842,2191.3,2190.7,0.00429268]
[1770148051064,0.22842,2191.4,2190.7,0.00429268]
[1770148051268,0.22843,2191.3,2189.8,2.55696494]
[1770148051762,2.72086457,2192.1,2189.8,2.78555494]
[1770148051966,0.22839,2191.7,2189.8,2.78555494]
[1770148052171,0.22839,2191.7,2189.7,2.80030529]
[1770148052172,0.22839,2191.7,2190.0,2.55696494]
[1770148052372,0.22841,2191.6,2190.0,2.55696494]
[1770148052668,0.22835,2192.1,2190.2,2.55696494]
[1770148052869,0.22839,2191.7,2189.8,5.50640951]
[1770148053071,0.2284,2191.6,2189.9,2.55696494]
[1770148053566,2.17690464,2190.9,2189.3,0.45060456]
[1770148053763,2.17690464,2190.9,2189.6,2.72086457]
[1770148053963,6.28590464,2190.9,2189.6,2.72086457]
[1770148054163,0.22842,2190.7,2189.4,0.07946212]
[1770148054363,2.17690464,2190.7,2189.4,0.07946212]
[1770148054765,2.17690464,2190.7,2189.3,0.22196456]
[1770148055369,2.40540464,2190.7,2189.3,0.22196456]
[1770148055576,6.788,2190.6,2189.4,2.52874186]
[1770148055778,8.97815245,2190.6,2189.4,2.52874186]
[1770148055980,2.19015245,2190.6,2189.4,2.52874186]
[1770148056174,6.30015245,2190.6,2189.4,2.52874186]
[1770148057077,2.40544049,2190.5,2189.4,2.52874186]
[1770148057275,2.17702049,2190.5,2189.4,2.52874186]
[1770148057579,2.40544049,2190.5,2189.4,2.52874186]
[1770148057778,2.17702049,2190.5,2189.4,2.52874186]
[1770148060177,2.17702049,2190.5,2189.4,2.52874186]
[1770148060873,0.00327838,2190.6,2189.4,2.52874186]
[1770148061578,0.22856,2190.1,2189.3,0.22196456]
[1770148061786,2.1641691,2189.7,2188.8,2.52874186]
[1770148061984,2.1641691,2189.7,2188.8,2.53317211]
[1770148062183,2.3925891,2189.7,2188.8,0.00443025]
[1770148062376,4.8431691,2190.0,2188.8,2.53317211]
[1770148062681,6.25562361,2190.2,2188.9,2.52874186]
[1770148062883,2.14462361,2190.1,2188.9,2.52874186]
[1770148063881,2.37316361,2190.3,2188.9,2.52874186]
[1770148064383,2.37304361,2190.2,2188.9,2.52874186]
[1770148064578,2.14462361,2190.2,2188.9,2.52874186]
[1770148064982,2.14672072,2190.6,2189.2,2.52874186]
[1770148065183,2.14344234,2190.5,2189.2,2.52874186]
[1770148066077,2.37186234,2190.2,2189.2,2.52874186]
[1770148066276,0.22842,2190.1,2189.2,2.52874186]
[1770148066478,2.37186234,2189.9,2188.8,2.53317211]
[1770148066681,2.14344234,2189.9,2188.8,2.53317211]
[1770148067082,2.37186234,2189.9,2188.8,2.53317211]
[1770148067287,0.22842,2189.7,2188.8,2.53317211]
[1770148067487,2.50563057,2189.8,2188.8,2.53317211]
[1770148067687,2.27721057,2189.8,2188.8,2.53317211]
[1770148067886,0.22842,2189.6,2188.8,2.53317211]
[1770148068285,0.22842,2189.5,2188.8,2.53317211]
[1770148068489,0.22842,2189.6,2188.8,2.53317211]
[1770148068886,0.22842,2189.5,2188.8,2.53317211]
[1770148069088,0.22842,2189.4,2188.8,0.00443025]
[1770148069281,0.22842,2189.2,2188.8,0.00443025]
[1770148069583,0.22861,2189.6,2188.1,2.52874186]
[1770148069784,5.22065015,2189.6,2188.1,2.52874186]
[1770148070187,2.31304015,2189.5,2188.1,2.52874186]
[1770148070489,2.90761,2189.6,2188.1,2.52874186]
[1770148070490,0.22861,2189.6,2188.3,2.52874186]
[1770148070691,2.31304015,2189.8,2188.7,2.48145269]
[1770148070887,2.32367191,2190.1,2188.9,2.48145269]
[1770148071289,2.55227191,2189.7,2188.4,2.48145269]
[1770148071689,2.55209191,2189.6,2188.4,2.48145269]
[1770148072091,0.22842,2189.3,2188.4,2.48145269]
[1770148072291,2.55209191,2189.3,2188.4,2.48145269]
[1770148072485,0.22842,2189.1,2188.4,2.48145269]
[1770148072992,0.22842,2189.0,2188.4,2.48145269]
[1770148073193,0.22842,2189.0,2188.1,2.48227766]
[1770148073194,2.37528447,2189.0,2188.1,2.48227766]
[1770148073391,0.22842,2188.6,2188.1,2.48227766]
[1770148073688,0.22842,2188.9,2188.1,2.48227766]
[1770148073890,2.41104987,2188.7,2187.5,2.15882276]
[1770148074296,2.41104987,2188.7,2187.7,0.07951932]
[1770148074494,2.41104987,2188.7,2187.3,0.22885]
[1770148074787,2.41104987,2188.7,2187.8,0.07951932]
[1770148074988,2.41563635,2189.0,2187.8,0.07951932]
[1770148075187,2.41563635,2189.0,2187.5,0.22883]
[1770148075494,2.64431635,2189.0,2187.1,5.47068826]
[1770148075694,2.41104987,2188.8,2187.1,0.22887]
[1770148075898,2.41104987,2188.6,2186.9,2.38724276]
[1770148076398,2.41104987,2188.4,2186.9,2.38724276]
[1770148076594,0.00458648,2189.0,2188.2,2.38724276]
[1770148076891,0.57416084,2189.6,2188.2,2.38724276]
[1770148077288,0.80277084,2189.6,2188.2,2.38724276]
[1770148077492,2.68,2189.7,2187.8,2.38724276]
[1770148077693,2.68362835,2189.7,2187.8,2.39182924]
[1770148077999,2.72086457,2189.2,2187.8,0.00458648]
[1770148078201,0.22866,2189.1,2187.8,0.00458648]
[1770148078401,5.42149155,2189.7,2187.8,0.00458648]
[1770148078600,0.22867,2189.1,2187.8,0.00458648]
[1770148078894,5.42149155,2189.7,2187.8,0.00458648]
[1770148078895,0.58386662,2189.0,2187.8,2.39182924]
[1770148079095,0.81254662,2189.0,2187.8,0.00458648]
[1770148079296,0.58386662,2188.9,2187.8,0.00458648]
[1770148079496,0.81255662,2188.9,2187.8,0.00458648]
[1770148079702,0.58386662,2188.7,2187.2,2.38724276]
[1770148079897,3.26028014,2188.6,2187.2,2.38724276]
[1770148080094,0.57928014,2188.5,2187.2,2.38724276]
[1770148080299,0.57928014,2188.3,2187.2,2.38724276]
[1770148080495,0.57928014,2188.6,2187.3,2.46676208]
[1770148080799,4.114,2188.9,2188.1,2.38724276]
[1770148081201,4.114,2188.9,2187.5,2.82929301]
[1770148081202,0.58013006,2188.8,2187.8,2.38724276]
[1770148081398,0.58013006,2188.8,2187.6,2.38724276]
[1770148081603,0.58013006,2189.4,2188.1,2.38724276]
[1770148081804,0.58375841,2189.7,2188.5,2.61596276]
[1770148082000,0.58375841,2189.7,2188.5,2.38724276]
[1770148082200,0.58375841,2189.7,2188.1,2.38724276]
[1770148082201,0.22863,2189.4,2188.1,2.38724276]
[1770148082498,0.00362835,2189.7,2188.6,2.38724276]
[1770148082701,0.00362835,2189.7,2189.1,0.07951932]
[1770148082897,0.00362835,2189.7,2188.9,2.46676208]
[1770148083101,0.63797931,2189.1,2187.8,2.38724276]
[1770148083297,0.63797931,2189.1,2186.8,6.32303912]
[1770148083298,0.63797931,2188.7,2187.4,2.38724276]
[1770148083500,0.63797931,2188.7,2187.4,2.61608276]
[1770148083702,0.63797931,2189.1,2188.0,2.38724276]
[1770148084004,0.00362835,2189.7,2188.0,2.38724276]
[1770148084005,0.63797931,2189.5,2188.0,2.38724276]
[1770148084405,0.63797931,2189.5,2188.2,2.38724276]
[1770148084602,0.63797931,2189.5,2188.2,2.61599276]
[1770148086199,0.00362835,2189.7,2188.2,2.61599276]
[1770148086706,0.00362835,2189.7,2188.4,2.38724276]
[1770148086906,0.00362835,2189.7,2188.4,2.61597276]
[1770148087206,0.00362835,2189.7,2188.7,2.38724276]
[1770148087505,8.15688981,2191.4,2188.7,2.38724276]
[1770148087506,0.66490122,2190.4,2189.0,2.38724276]
[1770148087705,0.66490122,2190.4,2189.0,2.61591276]
[1770148088103,0.66490122,2190.4,2189.0,2.38724276]
[1770148088300,0.66852957,2190.7,2189.2,2.61589276]
[1770148088502,0.66852957,2190.7,2189.4,2.38724276]
[1770148088806,0.6710185,2190.6,2189.3,2.61588276]
[1770148089208,0.00429357,2190.7,2189.3,2.61588276]
[1770148090007,0.6710185,2190.5,2189.3,2.38724276]
[1770148090907,0.00429357,2190.7,2189.3,2.38724276]
[1770148091108,0.67484567,2190.7,2189.3,2.38724276]
[1770148092311,0.22851,2190.6,2189.3,2.38724276]
[1770148092511,0.6705521,2190.5,2189.3,2.38724276]
[1770148092706,0.67998992,2190.4,2189.3,2.38724276]
[1770148093105,0.00429357,2190.7,2189.3,2.38724276]
[1770148093106,0.68428349,2190.7,2189.3,2.38724276]
[1770148093411,0.67998992,2190.6,2189.3,2.38724276]
[1770148093605,0.67998992,2190.4,2189.3,2.38724276]
[1770148096608,0.67178662,2190.7,2189.3,2.38724276]
[1770148096814,0.00429357,2190.7,2189.5,2.38724276]
[1770148097306,0.67178662,2190.7,2189.5,2.38724276]
[1770148099713,0.5938219,2190.6,2189.5,2.38724276]
[1770148099914,0.5938219,2190.5,2189.5,2.38724276]
[1770148101213,0.5756217,2190.2,2188.9,2.55218177]
[1770148101416,0.5756217,2190.0,2188.9,2.55218177]
[1770148101914,6.793,2190.3,2188.7,0.00337037]
[1770148101915,0.5756217,2189.7,2188.7,0.00337037]
[1770148102118,0.5756217,2189.3,2188.3,2.55218177]
[1770148102616,0.5756217,2189.6,2188.3,2.55218177]
[1770148102812,0.56764876,2189.9,2188.5,2.55218177]
[1770148104014,0.56764876,2189.8,2188.5,2.55218177]
[1770148104714,0.59332915,2189.4,2188.5,2.55218177]
[1770148105118,0.82197915,2189.2,2188.2,2.55218177]
[1770148105919,0.59332915,2189.5,2188.2,2.55218177]
[1770148106921,0.59332915,2189.5,2188.2,2.78094177]
[1770148107622,0.58190962,2189.8,2188.2,2.78094177]
[1770148107818,0.58190962,2189.8,2188.4,2.55218177]
[1770148107819,0.58190962,2189.7,2188.4,2.55218177]
[1770148108123,0.58190962,2190.0,2188.4,2.78091177]
[1770148108417,0.58190962,2189.7,2188.4,2.55218177]
[1770148108618,0.58190962,2189.5,2188.4,2.55218177]
[1770148109322,0.52069947,2189.3,2188.4,2.55218177]
[1770148110719,0.50672025,2190.4,2188.4,2.55218177]
[1770148110924,0.50672025,2189.8,2188.4,2.55218177]
[1770148111420,0.50672025,2190.1,2188.6,2.55218177]
[1770148111619,0.50672025,2190.1,2188.8,2.55218177]
[1770148111822,9.81810604,2191.3,2188.8,2.55218177]
[1770148111823,0.51101382,2191.4,2189.9,0.22857]
[1770148112018,9.81810604,2192.1,2189.9,0.22857]
[1770148112019,4.114,2192.2,2189.9,2.52095369]
[1770148112323,0.51101382,2191.8,2190.4,2.55218177]
[1770148112626,0.51101382,2191.8,2190.0,2.55218177]
[1770148112828,0.51443267,2191.8,2190.0,2.55673331]
[1770148113420,0.45251827,2191.0,2190.0,0.00455154]
[1770148113828,0.45251827,2190.8,2190.0,0.00455154]
[1770148114229,4.113,2191.2,2189.0,2.55218177]
[1770148114230,0.45251827,2190.2,2189.0,2.55218177]
[1770148114430,0.45251827,2189.9,2188.5,2.55218177]
[1770148114726,4.113,2190.2,2187.9,3.7145806]
[1770148114727,0.46466834,2189.2,2187.9,2.55218177]
[1770148114930,0.46466834,2189.2,2187.3,2.55218177]
[1770148114931,0.46466834,2188.7,2187.3,2.55218177]
[1770148115332,0.0045223,2188.7,2187.3,2.55218177]
[1770148115727,0.0045223,2188.7,2187.6,2.55218177]
[1770148115929,0.46466834,2189.4,2187.8,2.78098177]
[1770148116131,0.46466834,2189.8,2188.3,2.55218177]
[1770148116335,0.46466834,2190.2,2188.6,2.55218177]
[1770148116536,0.46466834,2190.6,2188.8,2.78087177]
[1770148116830,0.46795307,2190.6,2189.0,2.55218177]
[1770148117536,0.00328473,2190.6,2189.0,2.78085177]
[1770148119740,0.37756212,2190.6,2189.0,2.78085177]
[1770148120836,0.36784635,2190.3,2189.0,2.55218177]
[1770148121042,0.37113108,2190.6,2189.0,2.55218177]
[1770148121242,0.37113108,2190.6,2189.3,2.55218177]
[1770148121441,0.36784635,2190.1,2188.9,2.55218177]
[1770148122135,0.36784635,2190.1,2188.8,0.00452231]
[1770148122136,0.59644635,2190.0,2188.8,0.00452231]
[1770148122334,0.36784635,2189.9,2188.8,0.00452231]
[1770148122735,0.35911637,2189.7,2188.2,2.55218177]
[1770148122935,0.35911637,2189.6,2188.2,2.55218177]
[1770148123535,0.35911637,2189.5,2188.2,2.55218177]
[1770148123843,3.03911637,2189.9,2188.2,2.55218177]
[1770148124038,0.35911637,2189.9,2188.2,2.55218177]
[1770148124643,0.34738989,2189.2,2187.9,2.55218177]
[1770148124840,6.793,2190.0,2187.9,2.55218177]
[1770148124841,0.34738989,2189.0,2187.9,2.55218177]
[1770148125341,0.35166315,2189.0,2187.9,2.55218177]
[1770148125841,0.00427326,2189.0,2187.9,2.55218177]
[1770148129147,0.39682028,2189.0,2187.9,2.55218177]
[1770148129446,0.39254702,2188.7,2187.4,2.55218177]
[1770148130147,0.00427326,2189.0,2187.4,2.55218177]
[1770148130544,0.00427326,2189.0,2187.8,2.4899437]
[1770148130750,0.00427326,2189.0,2187.8,2.7187637]
[1770148131145,0.00427326,2189.0,2187.8,2.4899437]
[1770148132244,0.38921942,2189.0,2187.8,2.4899437]
[1770148133153,0.00427326,2189.0,2187.8,2.4899437]
[1770148134646,0.00427326,2189.0,2188.0,2.42198486]
[1770148135053,0.54612995,2190.2,2188.0,2.42198486]
[1770148135255,0.54612995,2190.2,2188.9,2.65068486]
[1770148135455,0.54612995,2190.2,2188.9,2.42198486]
[1770148135658,0.54612995,2190.1,2188.9,2.42198486]
[1770148135856,0.54612995,2190.0,2188.9,2.42198486]
[1770148136155,0.55029694,2190.0,2188.9,2.42625812]
[1770148136659,0.55370908,2189.9,2188.9,0.00427326]
[1770148137354,0.78230908,2189.9,2188.9,0.00427326]
[1770148137554,0.55370908,2189.8,2188.9,0.00427326]
[1770148137956,0.55370908,2189.7,2188.9,0.00427326]
[1770148138958,0.61868398,2190.0,2188.9,2.42625812]
[1770148139657,0.00416699,2190.0,2188.9,2.42625812]
[1770148140254,0.36809926,2190.6,2189.2,2.42198486]
[1770148140461,4.114,2191.0,2189.7,2.42198486]
[1770148140757,0.61868398,2191.8,2190.3,2.65053486]
[1770148141059,0.6579626,2191.6,2190.3,2.42198486]
[1770148141251,0.6579626,2191.6,2189.5,7.35751358]
[1770148141252,2.54599715,2191.0,2189.0,2.52095369]
[1770148141454,2.54599715,2191.3,2189.0,6.16388667]
[1770148141654,2.54599715,2190.9,2189.2,0.22867]
[1770148142157,2.54599715,2190.5,2188.9,0.23297326]
[1770148142353,2.54599715,2190.7,2188.9,0.23297326]
[1770148142556,2.54599715,2190.4,2188.9,0.00427326]
[1770148143159,2.54599715,2190.4,2189.0,2.42198486]
[1770148144157,2.54599715,2190.8,2189.0,2.42198486]
[1770148144358,0.22853,2190.6,2189.2,2.42198486]
[1770148144558,2.54599715,2190.5,2189.2,2.42198486]
[1770148145560,2.54599715,2190.5,2188.9,0.00427326]
[1770148145761,2.54599715,2189.9,2188.9,0.00427326]
[1770148145961,2.55084848,2189.9,2188.9,2.42625812]
[1770148146564,0.00485133,2189.9,2188.9,2.42625812]
[1770148147164,2.55084848,2189.9,2188.9,2.42625812]
[1770148147759,2.54599715,2189.7,2188.3,2.42198486]
[1770148148265,2.77465715,2189.4,2188.0,2.42198486]
[1770148148762,2.77465715,2189.3,2188.0,2.42615184]
[1770148149266,2.54599715,2189.3,2188.0,2.42615184]
[1770148149966,2.77469715,2189.0,2188.0,2.42615184]
[1770148150167,2.54599715,2189.4,2188.0,2.42615184]
[1770148150460,0.22864,2189.6,2188.0,2.42615184]
[1770148150669,2.91703043,2189.8,2188.2,2.42198486]
[1770148151066,0.37103328,2189.8,2188.2,2.42198486]
[1770148151266,2.91703043,2189.8,2188.5,2.42198486]
[1770148151472,2.54599715,2189.8,2188.2,2.42198486]
[1770148151766,2.77463715,2189.6,2188.2,2.42198486]
[1770148153366,2.54599715,2189.6,2188.2,2.42198486]
[1770148155469,0.00485133,2189.9,2188.4,4.94293855]
[1770148155666,0.00485133,2189.9,2188.7,2.42198486]
[1770148157267,2.55084848,2189.9,2188.7,2.42198486]
[1770148157660,2.54599715,2189.8,2188.2,2.65076486]
[1770148158065,0.00485133,2189.9,2188.5,2.42198486]
[1770148158368,2.55084848,2189.9,2188.5,2.42198486]
[1770148158564,2.55084848,2189.9,2188.3,2.42198486]
[1770148158761,2.54599715,2189.5,2188.3,2.42198486]
[1770148159268,2.77464715,2189.5,2188.3,2.42198486]
[1770148161473,2.66536366,2189.4,2188.3,2.42198486]
[1770148161667,0.00485133,2189.9,2188.0,2.52075866]
[1770148161668,2.66538366,2189.3,2188.0,2.52075866]
[1770148162466,2.66542366,2188.9,2188.0,0.00416698]
[1770148164170,2.43671366,2188.9,2187.0,2.56326337]
[1770148164375,2.43671366,2188.9,2185.4,4.576]
[1770148164376,2.73633068,2188.1,2186.6,4.90932588]
[1770148164668,0.2287,2189.0,2187.0,2.51659168]
[1770148164871,2.43671366,2189.4,2187.4,2.51659168]
[1770148165073,2.43671366,2189.7,2187.8,2.51659168]
[1770148165274,2.44163754,2189.7,2188.2,2.51659168]
[1770148165972,0.00492388,2189.7,2188.4,2.51659168]
[1770148166170,2.43671366,2190.4,2188.8,2.51659168]
[1770148166577,2.43671366,2190.8,2189.1,2.51659168]
[1770148166873,2.43671366,2190.8,2189.5,2.51659168]
[1770148167080,6.55171366,2191.2,2189.5,2.51659168]
[1770148167376,2.43671366,2191.1,2189.5,2.52151557]
[1770148167776,0.00342663,2191.2,2189.7,2.51659168]
[1770148168278,0.00342663,2191.2,2189.9,6.16075399]
[1770148168478,2.43671366,2191.7,2190.0,2.51659168]
[1770148168677,2.43671366,2191.7,2190.2,2.51659168]
[1770148169373,2.4422637,2191.7,2190.2,2.51659168]
[1770148177074,0.00555004,2191.7,2190.2,2.51659168]
[1770148177981,2.4422637,2191.7,2190.2,2.51659168]
[1770148179474,2.4422637,2191.7,2189.6,2.51659168]
[1770148179676,0.22847,2191.2,2189.6,2.51659168]
[1770148179876,2.66519366,2191.1,2189.6,2.51659168]
[1770148180073,2.43671366,2190.8,2189.5,0.00492389]
[1770148180278,2.43671366,2190.8,2189.5,2.52151557]
[1770148180780,2.43671366,2190.5,2189.5,0.00492389]
[1770148181077,2.66527366,2190.3,2188.3,2.51659168]
[1770148181276,2.66527366,2190.3,2188.4,2.51659168]
[1770148181476,2.679,2190.8,2188.4,2.51659168]
[1770148181477,2.43671366,2190.0,2188.4,2.51659168]
[1770148181879,2.66531366,2190.0,2188.4,2.51659168]
[1770148182077,2.66891218,2190.0,2188.4,2.52001831]
[1770148183682,0.00359852,2190.0,2188.7,2.51659168]
[1770148183882,0.00359852,2190.0,2188.7,2.74531168]
[1770148184572,2.44031218,2190.0,2188.7,2.51659168]
[1770148184778,2.66891218,2190.0,2188.7,2.51659168]
[1770148185378,2.44031218,2190.0,2188.7,2.51659168]
[1770148187582,2.66890218,2190.0,2188.7,2.51659168]
[1770148189778,2.43671366,2189.8,2188.4,0.00342663]
[1770148190081,2.66538366,2189.3,2188.4,0.00342663]
[1770148190878,3.02344891,2189.3,2188.4,0.00342663]
[1770148191081,2.66538366,2189.3,2188.2,2.38405936]
[1770148191676,2.32361895,2189.8,2188.2,2.38405936]
[1770148191875,2.32361895,2189.8,2188.4,2.61281936]
[1770148192076,0.00359852,2190.0,2188.7,2.38405936]
[1770148192481,2.55581747,2190.0,2188.7,2.38405936]
[1770148192683,2.32721747,2190.0,2188.7,2.38405936]
[1770148192881,2.32721747,2190.0,2188.3,2.73435889]
[1770148192882,0.00359852,2190.0,2188.9,2.38405936]
[1770148193281,0.00359852,2190.0,2189.1,5.11841825]
[1770148193489,4.113,2190.8,2189.6,2.38405936]
[1770148193788,2.32361895,2190.7,2189.6,2.38405936]
[1770148194487,2.32764095,2190.7,2189.6,2.38765788]
[1770148198389,2.32764095,2190.7,2189.6,5.35064677]
[1770148198390,0.004022,2190.7,2189.6,5.35064677]
[1770148198591,0.004022,2190.7,2189.7,2.35318345]
[1770148199485,0.004022,2190.7,2189.9,0.22859]
[1770148199691,2.65016493,2191.4,2190.0,2.35318345]
[1770148200088,2.42171493,2191.4,2190.2,2.35318345]
[1770148200392,2.65016493,2191.4,2189.9,2.35318345]
[1770148200893,0.00432206,2191.4,2190.4,2.35318345]
[1770148201790,2.42171493,2192.1,2190.7,2.35318345]
[1770148202088,2.42171493,2191.7,2190.7,2.35318345]
[1770148202592,2.42171493,2192.0,2190.7,2.35318345]
[1770148202987,2.42171493,2191.7,2190.7,2.35318345]
[1770148203189,2.65012493,2191.7,2190.1,2.35318345]
[1770148203394,2.65012493,2191.7,2190.1,2.58176345]
[1770148203590,2.42171493,2191.3,2190.1,2.35318345]
[1770148203793,0.22845,2191.4,2189.6,0.23222852]
[1770148203794,2.42171493,2191.1,2189.7,2.35318345]
[1770148203997,2.42171493,2190.8,2189.7,2.35318345]
[1770148204796,2.42171493,2191.2,2189.7,2.35318345]
[1770148204997,2.42171493,2191.0,2189.7,2.35318345]
[1770148205691,2.42171493,2190.8,2189.7,2.35318345]
[1770148205897,2.42171493,2191.1,2189.7,2.35318345]
[1770148206197,2.42171493,2191.1,2189.7,2.58180345]
[1770148206794,2.42171493,2191.4,2189.9,2.58177345]
[1770148207201,2.42171493,2191.4,2190.1,2.35318345]
[1770148207993,2.42171493,2191.2,2190.1,2.35318345]
[1770148208696,2.65015493,2191.5,2190.1,2.35318345]
[1770148209300,2.42171493,2191.5,2190.3,2.35318345]
[1770148210206,2.42171493,2191.8,2190.7,2.35318345]
[1770148210702,2.42621194,2192.0,2190.7,2.35318345]
[1770148211297,0.00449701,2192.0,2190.9,2.35318345]
[1770148211699,0.00449701,2192.0,2190.9,2.58167345]
[1770148212000,0.00449701,2192.0,2191.1,2.35318345]
[1770148212900,2.42621194,2192.0,2190.6,2.35318345]
[1770148214103,2.42621194,2192.0,2190.6,2.58171345]
[1770148214300,0.00449701,2192.0,2190.6,2.58171345]
[1770148214612,2.42171493,2192.6,2191.2,2.35318345]
[1770148214904,2.64996493,2193.3,2191.3,2.58163345]
[1770148215207,2.64996493,2193.3,2191.5,2.35318345]
[1770148215408,3.00513441,2193.3,2191.8,2.35318345]
[1770148215608,3.00879264,2193.3,2191.8,2.3568491]
[1770148215804,2.65000493,2192.9,2191.8,0.00366565]
[1770148216002,2.42171493,2192.7,2191.8,0.00366565]
[1770148216509,2.42171493,2192.7,2191.8,2.3568491]
[1770148216700,2.42171493,2192.7,2191.8,0.00366565]
[1770148217501,2.65002493,2192.7,2191.8,0.00366565]
[1770148217903,2.42171493,2192.4,2191.2,2.35318345]
[1770148218103,2.65006493,2192.4,2190.8,2.35318345]
[1770148218904,2.65006493,2192.4,2190.8,2.35841457]
[1770148219109,2.42171493,2192.4,2191.0,2.35318345]
[1770148219309,2.42171493,2192.8,2191.0,2.35318345]
[1770148219609,2.42171493,2192.8,2191.3,2.35318345]
[1770148219800,2.42171493,2192.8,2191.3,2.58163345]
[1770148220209,2.42171493,2193.2,2191.5,2.35318345]
[1770148220405,2.42171493,2193.2,2191.8,2.51608891]
[1770148221203,2.64997493,2193.2,2191.8,2.51608891]
[1770148222411,0.36319206,2193.6,2191.8,2.51608891]
[1770148222610,2.40455028,2195.4,2193.9,2.51608891]
[1770148222904,3.00361846,2195.4,2193.9,2.51608891]
[1770148223101,2.40455028,2195.0,2193.9,2.51608891]
[1770148223301,2.40455028,2194.8,2193.6,2.51608891]
[1770148223504,2.40860826,2194.8,2193.6,2.52049454]
[1770148223810,4.56,2194.7,2193.6,2.52049454]
[1770148224110,4.56,2194.4,2193.6,0.00440563]
[1770148224307,0.00405798,2194.8,2193.6,2.52049454]
[1770148225209,4.56,2194.5,2193.6,2.52049454]
[1770148225404,4.56,2194.4,2193.6,0.00440563]
[1770148225709,4.56,2194.2,2193.6,0.00440563]
[1770148225910,4.56,2194.3,2193.6,0.00440563]
[1770148226409,2.40455028,2194.5,2193.6,0.00440563]
[1770148226612,2.40455028,2194.1,2193.6,0.00440563]
[1770148226811,4.56,2193.8,2192.6,2.51608891]
[1770148227106,0.22815,2194.3,2192.6,2.51608891]
[1770148227308,2.40860826,2194.8,2193.3,2.51608891]
[1770148227611,0.00405798,2194.8,2193.9,2.51608891]
[1770148227912,0.00405798,2194.8,2193.9,2.52142414]
[1770148228708,0.59065484,2196.5,2195.1,2.51608891]
[1770148228915,2.62651484,2196.5,2195.3,2.51608891]
[1770148229610,0.22196456,2196.5,2195.3,2.51608891]
[1770148229810,4.107,2197.6,2195.7,2.51608891]
[1770148230010,2.63234028,2197.7,2196.3,2.51608891]
[1770148230308,2.63234028,2197.7,2195.7,0.228]
[1770148230309,2.40455028,2198.3,2196.5,2.51608891]
[1770148230515,2.40455028,2197.8,2196.5,2.51608891]
[1770148230707,2.40455028,2197.7,2196.5,2.51608891]
[1770148230913,2.40455028,2197.3,2195.6,2.51608891]
[1770148231216,0.22784,2197.2,2195.6,2.51608891]
[1770148231409,4.56,2197.1,2195.6,2.51608891]
[1770148231607,2.63235028,2197.6,2195.6,2.51608891]
[1770148231808,2.40455028,2197.4,2195.6,2.51608891]
[1770148232008,2.40455028,2197.4,2195.6,2.51994985]
[1770148232213,6.96455028,2197.4,2195.6,2.74795985]
[1770148233016,2.40455028,2197.4,2195.6,2.74795985]
[1770148233311,2.40455028,2197.4,2195.7,0.228]
[1770148233517,2.40455028,2197.4,2195.8,2.51608891]
[1770148234016,6.96455028,2197.3,2195.8,2.51608891]
[1770148234215,2.40455028,2197.3,2195.8,2.51608891]
[1770148234415,2.40455028,2197.1,2195.8,2.51608891]
[1770148234716,2.40455028,2197.0,2195.6,0.00386094]
[1770148234912,2.40455028,2196.8,2195.6,0.00386094]
[1770148235218,4.56,2196.4,2195.6,0.00386094]
[1770148235419,4.56,2196.2,2195.6,0.00386094]
[1770148235810,4.56,2196.0,2195.6,0.00386094]
[1770148236013,0.00389209,2196.0,2195.6,2.51994985]
[1770148236313,3.54640386,2199.7,2197.9,2.24926863]
[1770148236515,2.40455028,2201.1,2199.5,2.24926863]
[1770148236716,2.40455028,2201.1,2199.4,0.22761]
[1770148236909,2.40455028,2201.1,2199.6,2.674]
[1770148237109,2.40455028,2201.1,2199.6,5.0023924]
[1770148237313,2.40797534,2201.1,2199.7,5.0023924]
[1770148237615,2.40797534,2201.1,2199.8,2.674]
[1770148237809,2.40797534,2201.1,2199.9,2.3283924]
[1770148238211,2.40797534,2201.1,2199.6,0.00459902]
[1770148239914,2.63541534,2201.1,2199.6,0.00459902]
[1770148240112,2.40797534,2201.1,2199.6,0.00459902]
[1770148241317,2.40797534,2201.1,2199.0,2.08099626]
[1770148241318,2.40455028,2200.9,2198.4,4.1]
[1770148241620,2.40455028,2200.7,2198.4,6.772]
[1770148241923,2.40455028,2200.7,2198.3,6.28480695]
[1770148242216,2.40455028,2200.7,2198.3,6.28644614]
[1770148242524,2.40455028,2200.7,2198.3,2.18644614]
[1770148243217,2.40455028,2200.7,2198.3,2.41417614]
[1770148244424,2.40455028,2200.5,2198.3,2.41417614]
[1770148246524,2.63205028,2200.5,2198.3,2.41417614]
[1770148246720,2.40455028,2200.0,2198.3,0.00163919]
[1770148247417,0.22756,2199.9,2198.3,0.00163919]
[1770148247618,2.40455028,2199.6,2198.3,0.00163919]
[1770148247820,2.40455028,2199.4,2197.3,0.22783]
[1770148248030,2.40455028,2199.2,2197.3,0.22783]
[1770148248227,2.40455028,2199.0,2197.3,0.22783]
[1770148248530,2.40455028,2198.8,2196.8,4.098]
[1770148248826,2.40863603,2198.8,2196.7,2.74397891]
[1770148249026,2.40863603,2198.8,2196.8,2.51608891]
[1770148249529,2.40863603,2198.8,2196.9,2.51608891]
[1770148249728,2.40863603,2198.8,2197.2,2.74392891]
[1770148250221,2.40863603,2198.8,2197.4,0.22782]
[1770148250526,2.40863603,2198.8,2197.4,2.74390891]
[1770148250922,0.07913776,2200.8,2197.4,2.74390891]
[1770148250923,2.54740065,2201.6,2200.2,0.22752]
[1770148251120,2.54740065,2201.6,2198.7,3.62831208]
[1770148251121,2.54740065,2201.6,2200.3,0.22751]
[1770148251325,2.54740065,2201.6,2200.5,0.22749]
[1770148251726,2.54740065,2202.0,2200.5,0.22749]
[1770148251924,0.58117656,2202.7,2200.6,2.54914644]
[1770148252131,4.097,2203.2,2200.6,2.54914644]
[1770148252327,4.097,2203.2,2200.8,2.32165644]
[1770148252722,0.22728,2202.7,2200.5,4.10065307]
[1770148252924,0.23314486,2202.7,2200.6,2.32165644]
[1770148253232,0.00586486,2202.7,2200.6,2.32165644]
[1770148253530,0.00586486,2202.7,2200.8,2.32165644]
[1770148253828,0.00586486,2202.7,2200.9,6.41765644]
[1770148254030,2.34504929,2202.6,2201.0,2.54910644]
[1770148254327,2.34504929,2202.6,2201.2,2.46955072]
[1770148255229,2.34504929,2202.6,2200.8,6.56555072]
[1770148255628,2.34504929,2202.6,2200.9,2.46955072]
[1770148256024,2.34504929,2202.6,2200.5,0.00365307]
[1770148256025,2.34504929,2202.6,2200.5,2.47320379]